bitfinex/quotes_SOLUSD_20240702
["timestamp","ask_amount","ask_price","bid_price","bid_amount"]
[1719917566865,7.01242463,148.93,148.89,12.17]
[1719917567173,12.17,148.92,148.87,12.17]
[1719917568483,12.17,148.92,148.88,1.34309786]
[1719917572971,12.17,148.91,148.86,12.17]
[1719917573166,12.17,148.91,148.85,8.66576716]
[1719917573485,12.17,148.91,148.86,32.17]
[1719917578102,19.18050641,148.93,148.88,12.17]
[1719917578478,19.18050641,148.93,148.89,1.34297156]
[1719917578797,16.0223,148.92,148.86,1.34297085]
[1719917578970,16.0223,148.92,148.82,5.39185255]
[1719917578971,12.17,148.88,148.83,32.17]
[1719917579167,12.17,148.88,148.83,20.0]
[1719917579706,12.17,148.88,148.83,32.17]
[1719917580879,12.17,148.88,148.83,20.0]
[1719917581079,12.17,148.88,148.83,32.17]
[1719917581886,12.17,148.87,148.81,8.18910049]
[1719917582086,12.17,148.86,148.81,12.17]
[1719917583094,27.9388,148.86,148.79,40.39]
[1719917583279,12.17,148.84,148.78,7.70810049]
[1719917583597,12.17,148.83,148.78,12.17]
[1719917583985,12.17,148.85,148.8,12.17]
[1719917587101,22.78524001,148.86,148.82,12.17]
[1719917587598,15.7688,148.86,148.82,12.17]
[1719917589584,27.9388,148.86,148.82,12.17]
[1719917589787,27.9388,148.86,148.81,12.17]
[1719917589982,12.17,148.85,148.81,12.17]
[1719917590185,12.17,148.85,148.8,12.17]
[1719917591001,12.17,148.85,148.78,40.39]
[1719917591200,15.7688,148.86,148.81,12.17]
[1719917591501,23.1021,148.9,148.82,12.17]
[1719917591708,12.17,148.87,148.82,12.17]
[1719917592404,12.17,148.88,148.83,12.17]
[1719917592585,12.17,148.88,148.84,12.17]
[1719917593295,12.17,148.88,148.85,1.34341559]
[1719917593605,7.01657528,148.88,148.85,1.34341559]
[1719917593782,19.18657528,148.88,148.85,1.34341559]
[1719917594805,7.01657528,148.88,148.86,1.34341554]
[1719917595595,7.01657528,148.88,148.86,13.51341554]
[1719917595798,7.01657528,148.88,148.86,12.17]
[1719917596113,7.01657528,148.88,148.87,1.34332772]
[1719917597806,7.01657528,148.88,148.86,12.17]
[1719917598189,7.01657528,148.88,148.84,12.17]
[1719917598989,12.17,148.87,148.81,40.39]
[1719917599209,12.17,148.87,148.82,32.17]
[1719917599513,12.17,148.86,148.82,20.0]
[1719917599713,12.17,148.86,148.82,12.17]
[1719917600607,7.01657528,148.88,148.82,12.17]
[1719917600910,12.17,148.87,148.83,1.34351706]
[1719917601085,12.17,148.87,148.83,13.51351706]
[1719917601291,7.01657528,148.88,148.83,13.51351706]
[1719917601500,19.18657528,148.88,148.83,12.17]
[1719917602017,12.17,148.87,148.83,12.17]
[1719917602311,12.17,148.87,148.82,12.17]
[1719917602514,12.17,148.86,148.8,7.70810049]
[1719917602808,12.17,148.85,148.8,12.17]
[1719917603314,12.17,148.85,148.81,12.17]
[1719917605913,12.17,148.85,148.82,1.34371627]
[1719917606304,19.18610857,148.86,148.83,1.34364199]
[1719917607398,19.18610857,148.86,148.81,12.17]
[1719917607607,19.18610857,148.86,148.82,12.17]
[1719917607915,7.01610857,148.86,148.85,12.17]
[1719917608101,16.2804,148.94,148.85,172.56]
[1719917608302,16.2804,148.94,148.86,61.7329687]
[1719917608303,35.46445306,148.94,148.86,61.7329687]
[1719917608494,35.46445306,148.94,148.89,12.17]
[1719917609895,23.29445306,148.94,148.9,13.51293223]
[1719917610095,16.2804,148.94,148.9,13.51293223]
[1719917610502,6.3498,148.95,148.91,12.17]
[1719917610703,6.3498,148.95,148.92,1.34282013]
[1719917614204,13.72643519,148.97,148.92,1.34282013]
[1719917614205,12.17,148.96,148.92,1.34282013]
[1719917618730,7.01373519,148.97,148.93,1.3427921]
[1719917618912,7.01373519,148.97,148.92,12.17]
[1719917619119,7.01373519,148.97,148.93,1.3426598]
[1719917619120,19.18373519,148.97,148.93,1.3426598]
[1719917620130,7.01373519,148.97,148.93,1.3426598]
[1719917620329,19.18373519,148.97,148.92,12.17]
[1719917621206,18.8832,148.96,148.89,40.39]
[1719917621421,18.8832,148.96,148.91,12.17]
[1719917621727,18.8832,148.96,148.92,1.34281387]
[1719917621728,12.17,148.96,148.92,1.34281387]
[1719917621931,12.17,148.96,148.93,1.34272812]
[1719917622111,19.18373519,148.97,148.93,1.34272812]
[1719917622728,19.18373519,148.97,148.92,12.17]
[1719917622924,12.17,148.96,148.92,12.17]
[1719917623124,12.17,148.96,148.91,1.34266529]
[1719917623333,19.18373519,148.97,148.92,12.17]
[1719917624233,19.18373519,148.97,148.93,1.34262736]
[1719917624431,7.01373519,148.97,148.93,13.51262736]
[1719917625409,7.01373519,148.97,148.94,1.34262753]
[1719917626129,7.01373519,148.97,148.93,12.17]
[1719917626334,19.18373519,148.97,148.92,12.17]
[1719917633738,7.01373519,148.97,148.93,12.17]
[1719917633946,12.17,149.0,148.95,12.17]
[1719917634139,12.17,149.0,148.96,1.34243817]
[1719917635127,18.8814,149.0,148.95,12.17]
[1719917635321,12.17,148.99,148.94,12.17]
[1719917635520,6.7117,149.0,148.94,12.17]
[1719917635716,12.17,148.99,148.94,12.17]
[1719917635929,6.7117,149.0,148.94,12.17]
[1719917636125,12.17,148.99,148.94,12.17]
[1719917636326,12.17,148.98,148.93,12.17]
[1719917636938,6.7109,149.01,148.93,12.17]
[1719917637142,6.7109,149.01,148.94,12.17]
[1719917637322,35.19274907,149.02,148.94,12.17]
[1719917637640,12.17,149.0,148.95,12.17]
[1719917639344,12.17,149.0,148.96,1.34232097]
[1719917639547,12.17,149.01,148.96,13.51232097]
[1719917640433,12.17,149.01,148.97,1.34231506]
[1719917641249,7.01684907,149.02,148.97,13.51231506]
[1719917641552,7.01684907,149.02,148.98,1.34217812]
[1719917641553,19.18684907,149.02,148.98,1.34217812]
[1719917641749,25.89754907,149.02,148.94,140.39]
[1719917641942,25.89754907,149.02,148.97,12.17]
[1719917642251,19.18684907,149.02,148.97,12.17]
[1719917642551,12.17,149.01,148.94,140.39]
[1719917642740,12.17,149.01,148.96,12.17]
[1719917643857,7.01684907,149.02,148.97,12.17]
[1719917644031,12.17,149.01,148.97,12.17]
[1719917644840,12.17,149.01,148.94,140.39]
[1719917645042,12.17,149.01,148.97,12.17]
[1719917646437,12.17,149.01,148.94,140.39]
[1719917646657,12.17,149.0,148.94,140.39]
[1719917646864,12.17,149.0,148.95,12.17]
[1719917647238,12.17,148.98,148.91,40.39]
[1719917647446,12.17,148.98,148.92,20.0]
[1719917647642,12.17,148.97,148.92,12.17]
[1719917648136,12.17,148.98,148.93,12.17]
[1719917648738,12.17,148.97,148.92,12.17]
[1719917648940,7.01660429,148.99,148.92,12.17]
[1719917649251,7.01660429,148.99,148.93,12.17]
[1719917649450,12.17,148.98,148.93,12.17]
[1719917650755,12.17,148.97,148.92,12.17]
[1719917650962,12.17,148.93,148.86,40.39]
[1719917651144,12.17,148.92,148.86,40.39]
[1719917651343,70.9864,148.96,148.86,40.39]
[1719917651344,6.7137,148.95,148.86,40.39]
[1719917651653,12.17,148.92,148.87,12.17]
[1719917653956,7.01660429,148.99,148.91,40.39]
[1719917654159,7.01660429,148.99,148.95,12.17]
[1719917654372,12.17,149.0,148.94,40.39]
[1719917654566,12.17,149.0,148.95,12.17]
[1719917660956,23.44843125,149.02,148.97,12.17]
[1719917661270,28.6027,149.02,148.97,12.17]
[1719917661651,16.4327,149.02,148.95,40.39]
[1719917661856,28.6027,149.02,148.97,12.17]
[1719917662163,16.4327,149.02,148.98,13.51219463]
[1719917662362,16.4327,149.02,148.99,1.34219471]
[1719917662666,16.4327,149.02,148.98,12.17]
[1719917662868,28.6027,149.02,148.97,12.17]
[1719917663367,16.4327,149.02,148.91,100.0]
[1719917663572,12.17,148.98,148.93,12.17]
[1719917664147,12.17,148.99,148.94,12.17]
[1719917669673,12.17,149.0,148.95,12.17]
[1719917671380,16.4327,149.02,148.95,12.17]
[1719917671558,12.17,149.0,148.95,12.17]
[1719917673276,16.4327,149.02,148.95,12.17]
[1719917673454,12.17,149.0,148.95,12.17]
[1719917673873,12.17,149.01,148.96,12.17]
[1719917674064,16.4327,149.02,148.96,12.17]
[1719917674370,12.17,149.01,148.96,12.17]
[1719917676469,12.17,149.0,148.96,12.17]
[1719917676673,12.17,149.0,148.95,12.17]
[1719917680979,6.3652,149.01,148.9,56.1661]
[1719917681157,12.17,148.97,148.92,12.17]
[1719917682960,12.17,148.96,148.9,56.1661]
[1719917683171,12.17,148.96,148.91,20.0]
[1719917683505,12.17,148.95,148.89,20.0]
[1719917683676,12.17,148.95,148.9,12.17]
[1719917685079,16.0217,148.97,148.9,12.17]
[1719917685391,12.17,148.95,148.9,12.17]
[1719917686269,12.17,148.94,148.89,32.17]
[1719917686887,12.17,148.94,148.89,20.0]
[1719917687184,12.17,148.94,148.89,12.17]
[1719917693006,12.17,148.94,148.88,20.0]
[1719917693195,12.17,148.93,148.88,12.17]
[1719917693389,12.17,148.93,148.89,20.0]
[1719917694216,12.17,148.94,148.89,32.17]
[1719917697709,7.02009979,148.96,148.9,12.17]
[1719917698011,12.17,148.95,148.9,12.17]
[1719917702308,7.02009979,148.96,148.92,12.17]
[1719917702515,12.17,148.97,148.92,12.17]
[1719917703614,12.17,148.96,148.91,12.17]
[1719917704218,12.17,148.97,148.92,12.17]
[1719917704401,7.01594526,148.99,148.92,12.17]
[1719917704594,12.17,148.97,148.92,12.17]
[1719917705220,7.01594526,148.99,148.92,12.17]
[1719917705413,17.52759866,148.98,148.94,12.17]
[1719917705710,12.17,148.99,148.94,12.17]
[1719917705913,29.30028227,149.01,148.94,12.17]
[1719917706093,12.17,148.99,148.95,1.34253615]
[1719917706295,22.93508227,149.01,148.95,1.34253615]
[1719917706499,12.17,148.99,148.95,1.34253615]
[1719917706700,12.17,148.99,148.95,13.51253615]
[1719917707099,22.93508227,149.01,148.95,13.51253615]
[1719917707306,12.17,148.99,148.95,12.17]
[1719917707810,12.17,148.99,148.96,1.34249099]
[1719917708502,12.17,148.99,148.94,12.17]
[1719917709219,12.17,148.99,148.95,1.34249329]
[1719917709397,12.17,148.99,148.96,1.3424919]
[1719917710214,12.17,148.99,148.94,12.17]
[1719917711712,29.64618227,149.01,148.94,12.17]
[1719917711907,29.69577653,149.0,148.95,12.17]
[1719917712106,12.17,149.0,148.95,12.17]
[1719917712905,12.17,148.99,148.94,12.17]
[1719917713707,12.17,148.98,148.93,12.17]
[1719917714999,12.17,148.98,148.94,12.17]
[1719917715429,12.17,148.99,148.94,12.17]
[1719917716823,6.712,148.99,148.91,56.604]
[1719917717018,12.17,148.97,148.92,32.17]
[1719917717400,19.18874397,148.98,148.93,12.17]
[1719917717815,12.17,148.98,148.93,12.17]
[1719917718923,12.17,148.98,148.92,20.0]
[1719917719115,12.17,148.98,148.93,12.17]
[1719917719712,12.17,148.97,148.92,32.17]
[1719917720624,12.17,148.97,148.92,20.0]
[1719917723303,12.17,148.97,148.92,32.17]
[1719917725911,12.17,148.97,148.93,12.17]
[1719917727232,12.17,148.97,148.92,20.0]
[1719917727526,12.17,148.97,148.92,32.17]
[1719917729508,7.01868482,148.98,148.96,12.17]
[1719917729711,12.17,149.0,148.96,12.17]
[1719917730137,12.17,149.0,148.95,12.17]
[1719917730437,12.17,148.99,148.94,12.17]
[1719917733729,7.01736076,149.01,148.95,1.34245313]
[1719917733941,7.01736076,149.01,148.97,12.17]
[1719917734229,7.01736076,149.01,148.97,28.2901]
[1719917734407,7.01736076,149.01,148.98,13.51221979]
[1719917734603,16.0184,149.05,148.99,1.34215835]
[1719917734604,12.17,149.03,148.99,1.34215835]
[1719917734813,12.17,149.03,148.98,12.17]
[1719917735627,12.17,149.03,148.97,16.1201]
[1719917735810,12.17,149.03,148.98,12.17]
[1719917739521,12.17,149.03,148.99,12.17]
[1719917740507,23.03206539,149.05,148.99,12.17]
[1719917740714,12.17,149.03,148.99,12.17]
[1719917741918,23.03206539,149.05,148.99,12.17]
[1719917742116,12.17,149.03,148.99,12.17]
[1719917743234,12.17,149.03,148.97,16.1201]
[1719917743624,29.74126539,149.05,148.98,12.17]
[1719917743927,12.17,149.03,148.98,12.17]
[1719917744535,23.03206539,149.05,148.98,12.17]
[1719917744732,23.03206539,149.05,148.97,16.1201]
[1719917744733,12.17,149.03,148.97,16.1201]
[1719917744931,12.17,149.03,148.99,12.17]
[1719917746538,12.17,149.03,148.98,12.17]
[1719917747023,12.17,149.03,148.97,16.1201]
[1719917747336,12.17,149.03,148.98,12.17]
[1719917749040,12.17,149.03,148.96,6.3451]
[1719917749218,12.17,149.03,148.98,12.17]
[1719917749420,12.17,149.03,148.94,40.38]
[1719917749614,6.7096,149.04,148.97,12.17]
[1719917749615,12.17,149.02,148.97,12.17]
[1719917750021,12.17,149.01,148.97,12.17]
[1719917750324,12.17,149.01,148.96,12.17]
[1719917751127,12.17,149.01,148.93,55.7265]
[1719917751336,7.01670036,149.03,148.94,20.0]
[1719917751533,12.17,148.99,148.95,12.17]
[1719917751941,12.17,148.99,148.94,20.0]
[1719917752119,12.17,148.99,148.93,15.3465]
[1719917752324,12.17,148.99,148.94,12.17]
[1719917752535,12.17,148.99,148.93,15.3465]
[1719917752734,12.17,148.99,148.94,12.17]
[1719917752927,12.17,148.99,148.95,12.17]
[1719917753637,12.17,149.0,148.95,12.17]
[1719917755844,12.17,148.99,148.95,12.17]
[1719917756234,12.17,148.99,148.93,15.3465]
[1719917756437,12.17,148.99,148.95,12.17]
[1719917760546,12.17,148.97,148.9,16.3555]
[1719917760747,12.17,148.97,148.92,12.17]
[1719917762851,12.17,148.97,148.93,12.17]
[1719917764560,15.9883,148.96,148.87,40.38]
[1719917764856,12.17,148.94,148.89,12.17]
[1719917765862,15.9883,148.96,148.88,40.38]
[1719917766043,15.9883,148.96,148.92,12.17]
[1719917766255,18.3434,148.97,148.92,12.17]
[1719917767439,6.1734,148.97,148.92,12.17]
[1719917767641,12.17,148.96,148.92,12.17]
[1719917768050,12.17,148.96,148.91,12.17]
[1719917770277,12.17,148.95,148.87,40.38]
[1719917770472,12.17,148.95,148.85,22.5838]
[1719917770473,13.18613169,148.97,148.91,12.17]
[1719917770649,12.17,148.96,148.91,12.17]
[1719917770847,12.17,148.96,148.88,60.38]
[1719917771072,12.17,148.95,148.9,12.17]
[1719917772053,12.17,148.95,148.88,60.38]
[1719917772368,12.17,148.95,148.9,12.17]
[1719917776469,13.18613169,148.97,148.9,12.17]
[1719917776682,12.17,148.95,148.9,12.17]
[1719917777781,13.18613169,148.97,148.9,12.17]
[1719917777988,12.17,148.95,148.9,12.17]
[1719917778389,28.7298,148.94,148.89,12.17]
[1719917779570,12.17,148.93,148.89,12.17]
[1719917779758,12.17,148.93,148.88,32.17]
[1719917779966,12.17,148.93,148.88,12.17]
[1719917780372,16.5598,148.94,148.85,62.9638]
[1719917780564,12.17,148.93,148.88,12.17]
[1719917784393,12.17,148.92,148.87,12.17]
[1719917789562,23.57101777,148.94,148.87,52.55]
[1719917789763,35.74101777,148.94,148.89,12.17]
[1719917790076,28.7298,148.94,148.89,12.17]
[1719917790866,28.7298,148.94,148.87,40.38]
[1719917791193,28.7298,148.94,148.89,12.17]
[1719917793395,12.17,148.93,148.88,12.17]
[1719917793568,28.7298,148.94,148.89,13.51303536]
[1719917794089,28.7298,148.94,148.89,12.17]
[1719917796572,16.5598,148.94,148.89,12.17]
[1719917796801,28.7298,148.94,148.89,12.17]
[1719917797794,28.7298,148.94,148.85,56.5172]
[1719917798104,28.7298,148.94,148.89,12.17]
[1719917798605,12.17,148.93,148.88,12.17]
[1719917799199,12.17,148.93,148.86,20.0]
[1719917799376,12.17,148.91,148.85,20.0]
[1719917799581,12.17,148.91,148.86,13.5132505]
[1719917802900,12.17,148.91,148.87,12.17]
[1719917803101,19.18208521,148.92,148.87,12.17]
[1719917805101,12.17,148.91,148.87,12.17]
[1719917805300,19.18208521,148.92,148.88,1.34320681]
[1719917805507,12.17,148.92,148.88,1.34320681]
[1719917805674,12.17,148.92,148.88,13.51320681]
[1719917805876,12.17,148.92,148.88,12.17]
[1719917809493,6.1863,148.91,148.85,21.34309563]
[1719917809686,12.17,148.89,148.85,12.17]
[1719917810006,12.17,148.89,148.84,12.17]
[1719917811112,12.17,148.89,148.85,12.17]
[1719917812408,12.17,148.9,148.85,12.17]
[1719917812590,12.17,148.89,148.84,12.17]
[1719917817282,12.17,148.89,148.81,45.66686695]
[1719917817482,12.17,148.89,148.84,12.17]
[1719917818610,12.17,148.88,148.83,12.17]
[1719917820487,12.17,148.87,148.82,20.0]
[1719917820811,12.17,148.85,148.76,116.0441]
[1719917821119,12.17,148.84,148.79,12.17]
[1719917821408,12.17,148.85,148.8,12.17]
[1719917824011,12.17,148.86,148.81,12.17]
[1719917824385,55.3965,148.89,148.81,12.17]
[1719917824386,6.7165,148.89,148.81,12.17]
[1719917824708,12.17,148.86,148.81,12.17]
[1719917826002,12.17,148.85,148.8,12.17]
[1719917826896,12.17,148.84,148.77,40.38]
[1719917827105,6.99835881,148.86,148.78,32.17]
[1719917827106,12.17,148.83,148.78,32.17]
[1719917827299,12.17,148.83,148.78,20.0]
[1719917827604,12.17,148.83,148.78,32.17]
[1719917828606,12.17,148.84,148.79,12.17]
[1719917829300,12.17,148.84,148.78,20.0]
[1719917829526,12.17,148.83,148.78,12.17]
[1719917830394,12.17,148.84,148.79,12.17]
[1719917830906,12.17,148.85,148.8,12.17]
[1719917831591,12.17,148.85,148.77,20.0]
[1719917831592,25.20585881,148.86,148.81,12.17]
[1719917831908,12.17,148.88,148.83,12.17]
[1719917833212,35.20317608,148.9,148.83,12.17]
[1719917833511,12.17,148.88,148.83,12.17]
[1719917835201,12.17,148.87,148.83,12.17]
[1719917835604,12.17,148.88,148.83,12.17]
[1719917837096,12.17,148.87,148.83,12.17]
[1719917839091,12.17,148.87,148.78,140.38]
[1719917839291,12.17,148.87,148.83,12.17]
[1719917840191,12.17,148.87,148.79,40.38]
[1719917840390,12.17,148.87,148.82,12.17]
[1719917841502,12.17,148.87,148.83,12.17]
[1719917847527,12.17,148.87,148.82,12.17]
[1719917849730,12.17,148.85,148.8,32.17]
[1719917852129,12.17,148.85,148.8,20.0]
[1719917852329,12.17,148.85,148.78,20.0]
[1719917852513,12.17,148.85,148.8,12.17]
[1719917856129,12.17,148.85,148.78,20.0]
[1719917856130,12.17,148.84,148.78,20.0]
[1719917856436,12.17,148.84,148.79,12.17]
[1719917856620,12.17,148.84,148.77,45.68994217]
[1719917856819,12.17,148.84,148.79,12.17]
[1719917858520,12.17,148.84,148.76,16.0441]
[1719917858722,22.0102,148.85,148.78,12.17]
[1719917858913,22.0102,148.85,148.76,16.0441]
[1719917858914,12.17,148.83,148.76,16.0441]
[1719917859315,12.17,148.83,148.78,12.17]
[1719917859851,12.17,148.83,148.76,16.0441]
[1719917860030,12.17,148.83,148.78,12.17]
[1719917860350,12.17,148.83,148.77,20.0]
[1719917860636,12.17,148.83,148.78,12.17]
[1719917863026,12.17,148.83,148.77,20.0]
[1719917863225,12.17,148.83,148.78,12.17]
[1719917863632,6.9995741,148.84,148.78,12.17]
[1719917863840,12.17,148.84,148.79,12.17]
[1719917865444,29.00946284,148.85,148.77,20.0]
[1719917865637,12.17,148.82,148.78,12.17]
[1719917866830,12.17,148.83,148.78,12.17]
[1719917867027,29.00946284,148.85,148.77,20.0]
[1719917867028,12.17,148.84,148.79,12.17]
[1719917870837,12.17,148.83,148.78,12.17]
[1719917874042,12.17,148.84,148.79,12.17]
[1719917874440,6.99926284,148.85,148.83,12.17]
[1719917874615,22.6795,148.89,148.83,12.17]
[1719917874821,19.39414191,148.88,148.84,12.17]
[1719917875023,19.39414191,148.88,148.85,12.17]
[1719917875240,22.6795,148.89,148.85,12.17]
[1719917876127,6.99902606,148.91,148.86,12.17]
[1719917876330,6.99902606,148.91,148.88,12.17]
[1719917876527,33.7537,148.93,148.88,12.17]
[1719917876752,19.38956557,148.92,148.88,12.17]
[1719917877356,33.7537,148.93,148.88,12.17]
[1719917877936,21.5837,148.93,148.88,12.17]
[1719917878133,40.4682,148.93,148.82,189.06]
[1719917878338,6.9983729,148.94,148.89,12.17]
[1719917878668,12.17,148.95,148.91,12.17]
[1719917878849,19.38720934,148.94,148.91,12.17]
[1719917879452,19.38720934,148.94,148.89,12.17]
[1719917879453,12.17,148.94,148.89,12.17]
[1719917879841,18.8843,148.94,148.89,12.17]
[1719917880229,6.7143,148.94,148.89,12.17]
[1719917880435,6.7138,148.95,148.89,12.17]
[1719917880637,31.55797388,148.94,148.89,12.17]
[1719917880835,6.7138,148.95,148.89,12.17]
[1719917881041,31.55797578,148.94,148.89,12.17]
[1719917881362,12.17,148.94,148.89,12.17]
[1719917882037,12.17,148.95,148.9,12.17]
[1719917882362,12.17,148.94,148.89,12.17]
[1719917883229,6.7149,148.93,148.88,12.17]
[1719917883426,12.17,148.92,148.87,12.17]
[1719917883850,18.8862,148.9,148.83,16.4763]
[1719917884150,12.17,148.9,148.85,12.17]
[1719917885537,12.17,148.9,148.86,12.17]
[1719917886661,18.8859,148.9,148.86,12.17]
[1719917886854,18.8859,148.9,148.85,12.17]
[1719917887158,6.7156,148.91,148.85,12.17]
[1719917887362,12.17,148.9,148.85,12.17]
[1719917890367,18.8859,148.9,148.85,12.17]
[1719917891950,18.8859,148.9,148.81,52.00973691]
[1719917892154,18.8859,148.9,148.85,12.17]
[1719917893563,18.8859,148.9,148.82,48.68]
[1719917893770,18.8859,148.9,148.85,12.17]
[1719917895968,12.17,148.9,148.85,12.17]
[1719917900177,18.8859,148.9,148.85,12.17]
[1719917901483,12.17,148.9,148.85,12.17]
[1719917901650,6.99920985,148.9,148.85,12.17]
[1719917901855,19.16920985,148.9,148.85,12.17]
[1719917902462,19.16920985,148.9,148.86,12.17]
[1719917903664,25.88510985,148.9,148.86,12.17]
[1719917903963,13.71510985,148.9,148.86,12.17]
[1719917906069,25.88510985,148.9,148.81,52.00973691]
[1719917906372,25.88510985,148.9,148.85,12.17]
[1719917907082,6.7164,148.89,148.82,20.0]
[1719917907261,6.7164,148.89,148.85,12.17]
[1719917907974,25.88530985,148.9,148.85,12.17]
[1719917910479,19.16920985,148.9,148.85,12.17]
[1719917920573,19.39197497,148.89,148.85,12.17]
[1719917921496,19.16920985,148.9,148.85,12.17]
[1719917921671,19.39186108,148.89,148.85,12.17]
[1719917921992,19.16920985,148.9,148.85,12.17]
[1719917922164,19.39186298,148.89,148.85,12.17]
[1719917923286,19.39186298,148.89,148.82,68.68]
[1719917923493,19.39186298,148.89,148.85,12.17]
[1719917924995,19.16920985,148.9,148.85,12.17]
[1719917925166,19.39197741,148.89,148.85,12.17]
[1719917931584,19.16920985,148.9,148.82,60.38]
[1719917931585,6.99920985,148.9,148.88,12.17]
[1719917931895,6.1058,148.96,148.89,13.51318249]
[1719917932070,24.989,148.96,148.9,1.34300027]
[1719917932276,24.989,148.96,148.91,12.17]
[1719917932483,31.98233359,148.96,148.91,12.17]
[1719917932890,19.38682053,148.95,148.91,12.17]
[1719917933400,26.10042053,148.95,148.91,12.17]
[1719917933593,19.38682053,148.94,148.9,12.17]
[1719917934391,38.27092053,148.94,148.89,12.17]
[1719917934577,19.38682053,148.93,148.89,12.17]
[1719917934998,26.10132053,148.93,148.89,12.17]
[1719917935298,19.38682053,148.92,148.89,12.17]
[1719917936199,18.8843,148.94,148.89,12.17]
[1719917936583,6.7137,148.95,148.91,12.17]
[1719917936788,18.8837,148.95,148.91,12.17]
[1719917936993,19.38774473,148.94,148.91,12.17]
[1719917937189,18.8837,148.95,148.91,12.17]
[1719917937398,19.38683402,148.94,148.91,12.17]
[1719917939099,18.8837,148.95,148.91,12.17]
[1719917939811,19.38683402,148.94,148.91,12.17]
[1719917940510,19.38683402,148.95,148.92,12.17]
[1719917941099,19.3868321,148.94,148.92,12.17]
[1719917941406,19.3868321,148.95,148.92,12.17]
[1719917941587,19.3868321,148.94,148.92,12.17]
[1719917941906,19.3868321,148.93,148.92,12.17]
[1719917942086,19.3868321,148.95,148.92,12.17]
[1719917942604,19.3868321,148.95,148.91,12.17]
[1719917943906,19.3868339,148.94,148.91,12.17]
[1719917944084,19.3868339,148.95,148.91,12.17]
[1719917944706,6.7141,148.94,148.86,46.9586]
[1719917945000,19.3876438,148.93,148.9,12.17]
[1719917945391,26.1022438,148.93,148.87,20.0]
[1719917945602,6.7146,148.93,148.89,12.17]
[1719917945779,6.7146,148.93,148.87,20.0]
[1719917945982,6.7146,148.93,148.89,12.17]
[1719917946501,25.87909389,148.94,148.89,12.17]
[1719917946693,19.38775222,148.93,148.89,12.17]
[1719917946903,25.87909389,148.94,148.89,12.17]
[1719917947084,19.38775032,148.93,148.89,12.17]
[1719917947285,25.87909389,148.94,148.89,12.17]
[1719917947485,19.38775032,148.93,148.89,12.17]
[1719917947709,25.87909389,148.94,148.89,12.17]
[1719917948411,19.16489389,148.94,148.89,12.17]
[1719917948590,6.99489389,148.94,148.9,12.17]